fUSD/lending_fUSD_20251014
["ID","MTS","AMOUNT","RATE_DAILY","PERIOD"]
[391263440,1760451040585,-3000.0,0.00017712,2]
[391263441,1760451040595,-500.0,0.0001774,2]
[391263442,1760451040605,-899.93,0.0001774,2]
[391263443,1760451040614,-150.0,0.0001774,2]
[391263444,1760451040624,-1191.5506167,0.00017751,2]
[391263445,1760451040633,-195.65,0.00017776,2]
[391263446,1760451040643,-10000.0,0.00017808,9]
[391263447,1760451040652,-10000.0,0.00017808,9]
[391263448,1760451040662,-10000.0,0.00017808,9]
[391263449,1760451040672,-245.76,0.00017842,2]
[391263450,1760451040681,-151.0,0.00017842,2]
[391263451,1760451040691,-210.427727,0.00017842,2]
[391263452,1760451040701,-210.427727,0.00017842,2]
[391263453,1760451040710,-210.427727,0.00017842,2]
[391263454,1760451040720,-210.427727,0.00017842,2]
[391263455,1760451040730,-151.0,0.00017842,2]
[391263456,1760451040740,-151.0,0.00017842,2]
[391263457,1760451040750,-151.0,0.00017842,2]
[391263458,1760451040759,-195.492984,0.00017842,2]
[391263459,1760451040769,-151.0,0.00017868,2]
[391263460,1760451040779,-151.0,0.00017868,2]
[391263461,1760451040791,-9719.00452205,0.00017868,2]
[391263462,1760451040800,-4014.0,0.00017874,2]
[391263463,1760451040810,-211.86,0.00017979,2]
[391263464,1760451040819,-15736.8465117,0.00017987,2]
[391263465,1760451040829,-151.0,0.00017987,2]
[391263466,1760451040839,-500.0,0.00018014,2]
[391263467,1760451040848,-290.19220627,0.0001807,2]
[391263468,1760451040858,-35275.7967528,0.00018165,2]
[391263469,1760451040867,-220.82503567,0.00018222,2]
[391263470,1760451040877,-151.00000017,0.00018247,2]
[391263471,1760451040887,-195.65,0.00018257,2]
[391263472,1760451040897,-406.0,0.0001828,2]
[391263473,1760451040907,-250.01,0.00018288,2]
[391263474,1760451040917,-300.27,0.00018329,2]
[391263475,1760451040926,-170.66,0.00018361,2]
[391263476,1760451040936,-9719.00452205,0.00018363,2]
[391263477,1760451040946,-168.0,0.00018383,2]
[391263478,1760451040956,-168.0,0.00018472,2]
[391263479,1760451040965,-1308.0,0.00018494,2]
[391263480,1760451040975,-168.0,0.00018554,2]
[391263481,1760451040984,-168.0,0.00018559,2]
[391263482,1760451040995,-168.0,0.00018592,2]
[391263483,1760451041005,-176.47647059,0.00018602,9]
[391263484,1760451041014,-4145.41364411,0.00018602,2]
[391263485,1760451041304,-168.0,0.00018609,2]
[391263486,1760451041313,-245.76,0.00018617,2]
[391263487,1760451041323,-2000.42455426,0.00018696,2]
[391263488,1760451041332,-151.0,0.00018696,2]
[391263489,1760451041341,-152.652321,0.00018696,2]
[391263490,1760451041350,-153.894944,0.00018696,2]
[391263491,1760451041359,-151.0,0.00018696,2]
[391263492,1760451041369,-168.0,0.00018699,2]
[391263493,1760451041379,-168.0,0.00018714,2]
[391263494,1760451041388,-152.44884,0.00018756,2]
[391263495,1760451041398,-220.781206,0.00018756,2]
[391263496,1760451041407,-2000.0,0.00018756,2]
[391263497,1760451041417,-2000.0,0.00018756,2]
[391263498,1760451041426,-2000.0,0.00018756,2]
[391263499,1760451041435,-1896.723,0.00018756,2]
[391263500,1760451041444,-261.669,0.00018756,2]
[391263501,1760451041454,-1412.0,0.0001876,2]
[391263502,1760451041464,-168.0,0.00018761,2]
[391263503,1760451041473,-168.0,0.00018767,2]
[391263504,1760451041482,-64034.01628904,0.00018774,2]
[391263505,1760451041495,-1022.55808677,0.00018774,2]
[391263577,1760451043466,-1657.11011,0.0001485,2]
[391263579,1760451043477,-1657.11012,0.0001498,2]
[391263581,1760451043487,-30.88166078,0.00014997,2]
[391263584,1760451043499,-120.11833922,0.00014997,2]
[391263586,1760451043509,-151.0,0.00015,2]
[391263588,1760451043518,-151.0,0.00015,2]
[391263590,1760451043528,-151.0,0.00015,2]
[391263592,1760451043537,-150.0,0.00015109,2]
[391263594,1760451043550,-150.0,0.00015163,2]
[391263596,1760451043559,-150.0,0.00015218,2]
[391263598,1760451043569,-1657.11012,0.0001524,2]
[391263600,1760451043579,-196.18945097,0.00015273,2]
[391263602,1760451043589,-1657.11012,0.0001548,2]
[391263604,1760451043599,-60.57196985,0.0001574,2]
[391263642,1760451044123,-153.75752986,0.00014999,2]
[391263643,1760451044134,-1596.53814015,0.0001574,2]
[391263644,1760451044144,-151.0,0.00015886,2]
[391263645,1760451044154,-151.0,0.00015889,2]
[391263646,1760451044164,-137.77364941,0.00015889,2]
[391263647,1760451044175,-13.22635059,0.00015889,2]
[391263648,1760451044185,-581.73032061,0.0001599,2]
[391263649,1760451044197,-1075.37979939,0.0001599,2]
[391263650,1760451044209,-151.0,0.00017,2]
[391263651,1760451044218,-26.78968385,0.00017439,2]
[391263652,1760451044230,-124.21031615,0.00017439,2]
[391263653,1760451044240,-151.0,0.00017442,2]
[391263654,1760451044251,-151.0,0.00017442,2]
[391263655,1760451044261,-151.0,0.00018696,2]
[391263656,1760451044270,-151.0,0.00018696,2]
[391263657,1760451044280,-3526.34514064,0.00018774,2]
[391263658,1760451044365,-630.05,0.00018774,2]
[391263659,1760451044403,-16776.83324507,0.00018774,2]
[391263660,1760451044450,-11168.292,0.00018774,2]
[391263661,1760451044475,-134950.31126462,0.00018774,2]
[391263662,1760451044485,-210.427727,0.00018774,2]
[391263663,1760451044494,-210.427727,0.00018774,2]
[391263664,1760451044503,-210.427727,0.00018774,2]
[391263665,1760451044513,-210.42773087,0.00018774,2]
[391263666,1760451044522,-151.0,0.00018774,2]
[391263667,1760451044531,-182.361935,0.00018774,2]
[391263668,1760451044540,-151.0,0.00018774,2]
[391263669,1760451044553,-151.0,0.00018774,2]
[391263670,1760451044563,-151.0,0.00018774,2]
[391263671,1760451044572,-151.0,0.00018774,2]
[391263672,1760451044581,-151.0,0.00018774,2]
[391263673,1760451044590,-151.0,0.00018774,2]
[391263674,1760451044600,-151.0,0.00018774,2]
[391263675,1760451044609,-151.0,0.00018774,2]
[391263676,1760451044618,-151.0,0.00018774,2]
[391263677,1760451044628,-151.0,0.00018774,2]
[391263678,1760451044637,-151.0,0.00018774,2]
[391263679,1760451045081,-151.0,0.00018774,2]
[391263680,1760451045094,-151.0,0.00018774,2]
[391263681,1760451045105,-3859.822849,0.00018774,2]
[391263682,1760451045117,-3859.822849,0.00018774,2]
[391263683,1760451045127,-3859.822849,0.00018774,2]
[391263684,1760451045136,-3859.822854,0.00018774,2]
[391263685,1760451045148,-151.0,0.00018774,2]
[391263686,1760451045157,-360.189151,0.00018774,2]
[391263687,1760451045167,-360.189151,0.00018774,2]
[391263688,1760451045176,-360.189151,0.00018774,2]
[391263689,1760451045186,-360.189143,0.00018774,2]
[391263690,1760451045195,-151.0,0.00018774,2]
[391263691,1760451045205,-151.0,0.00018774,2]
[391263692,1760451045219,-359.812804,0.00018774,2]
[391263693,1760451045240,-359.812804,0.00018774,2]
[391263694,1760451045260,-359.812804,0.00018774,2]
[391263695,1760451045270,-151.0,0.00018774,2]
[391263696,1760451045280,-359.812798,0.00018774,2]
[391263697,1760451045292,-151.0,0.00018774,2]
[391263698,1760451045306,-151.0,0.00018774,2]
[391263699,1760451045315,-152.136532,0.00018774,2]
[391263700,1760451045326,-152.136532,0.00018774,2]
[391263701,1760451045336,-152.136532,0.00018774,2]
[391263702,1760451045345,-152.136524,0.00018774,2]
[391263703,1760451045355,-151.0,0.00018774,2]
[391263704,1760451045364,-231.664832,0.00018774,2]
[391263705,1760451045374,-151.0,0.00018774,2]
[391263706,1760451045384,-151.0,0.00018774,2]
[391263707,1760451045394,-233.998844,0.00018774,2]
[391263708,1760451045403,-151.0,0.00018774,2]
[391263709,1760451045412,-163.352097,0.00018774,2]
[391263710,1760451045422,-543.69,0.00018775,2]
[391263711,1760451045432,-694.95,0.00018775,2]
[391263712,1760451045442,-694.95,0.00018775,2]
[391263713,1760451045451,-474.58,0.00018775,2]
[391263714,1760451045461,-948.46,0.00018775,2]
[391263715,1760451045471,-27007.95786228,0.00018777,2]
[391263716,1760451045480,-745.0,0.00018781,2]
[391263717,1760451045490,-168.0,0.00018796,2]
[391263718,1760451045501,-151.73,0.000188,2]
[391263719,1760451045514,-9719.00452205,0.00018857,2]
[391263720,1760451045524,-290.19220627,0.00018862,2]
[391263721,1760451045533,-7871.0941788,0.00018871,2]
[391263722,1760451045546,-1600.0,0.00018898,2]
[391263723,1760451045555,-334.5472959,0.00018936,2]
[391263724,1760451045564,-287.61899177,0.00018936,2]
[391263725,1760451045573,-299.0,0.00018987,2]
[391263726,1760451045583,-2000.0,0.00019,2]
[391263727,1760451045593,-404663.31264113,0.00019,2]
[391263728,1760451045602,-166.70326285,0.00019,2]
[391263729,1760451045612,-1252.0,0.00019017,2]
[391263730,1760451045622,-500.0,0.00019025,2]
[391263731,1760451045632,-170.66,0.00019061,2]
[391263732,1760451045641,-504.0,0.00019065,2]
[391263733,1760451045651,-171.25503342,0.00019094,2]
[391263734,1760451045661,-168.0,0.00019098,2]
[391263735,1760451045671,-251.81837537,0.0001911,2]
[391263736,1760451045680,-151.0,0.00019119,2]
[391263737,1760451045690,-151.0,0.00019119,2]
[391263738,1760451045699,-168.0,0.00019124,2]
[391263739,1760451045709,-168.0,0.00019132,2]
[391263740,1760451045719,-168.0,0.00019139,2]
[391263741,1760451045729,-26667.53113597,0.00019168,2]
[391263742,1760451045740,-773.0,0.00019171,2]
[391263743,1760451045750,-556.0,0.00019171,2]
[391263744,1760451045760,-4014.0,0.00019171,2]
[391263745,1760451045769,-574.11666166,0.00019173,2]
[391263746,1760451045779,-500.73661914,0.00019173,2]
[391263747,1760451045790,-500.0,0.00019173,2]
[391263748,1760451045802,-500.73695519,0.00019173,2]
[391263749,1760451045812,-500.0,0.00019173,2]
[391263750,1760451045822,-500.35392953,0.00019173,2]
[391263751,1760451045832,-561.87686741,0.00019173,2]
[391263752,1760451045842,-501.01681118,0.00019173,2]
[391263753,1760451045852,-500.0,0.00019173,2]
[391263754,1760451045862,-500.77155323,0.00019173,2]
[391263755,1760451045872,-500.0,0.00019173,2]
[391263756,1760451045881,-501.20191339,0.00019173,2]
[391263757,1760451045892,-500.0,0.00019173,2]
[391263758,1760451045904,-502.3989534,0.00019173,2]
[391263759,1760451045914,-500.0,0.00019173,2]
[391263760,1760451045924,-500.0,0.00019173,2]
[391263761,1760451045933,-203.87262632,0.00019173,2]
[391263762,1760451045943,-500.0,0.00019173,2]
[391263763,1760451045953,-500.0,0.00019173,2]
[391263764,1760451045962,-500.0,0.00019173,2]
[391263765,1760451045972,-500.0,0.00019173,2]
[391263766,1760451045981,-500.0,0.00019173,2]
[391263767,1760451045991,-531.28681302,0.00019173,2]
[391263768,1760451046001,-500.97104398,0.00019173,2]
[391263769,1760451046011,-500.0,0.00019173,2]
[391263770,1760451046020,-500.0,0.00019173,2]
[391263771,1760451046030,-160.33372539,0.00019173,2]
[391263772,1760451046039,-500.22925771,0.00019173,2]
[391263773,1760451046050,-500.0,0.00019173,2]
[391263774,1760451046060,-503.13858176,0.00019173,2]
[391263775,1760451046071,-1000.0,0.00019178,2]
[391263776,1760451046082,-153.498262,0.00019178,2]
[391263777,1760451046092,-500.0,0.00019178,2]
[391263778,1760451046102,-1472.18,0.00019178,2]
[391263779,1760451046113,-839.97,0.00019178,2]
[391263780,1760451046122,-500.0,0.00019178,2]
[391263781,1760451046132,-500.0,0.00019178,2]
[391263782,1760451046141,-500.0,0.00019178,2]
[391263783,1760451046152,-1795.07,0.00019178,2]
[391263784,1760451046162,-500.0,0.00019178,2]
[391263785,1760451046171,-508.34817712,0.00019178,2]
[391263786,1760451046181,-526.52,0.00019178,2]
[391263787,1760451046190,-500.0,0.00019178,2]
[391263788,1760451046200,-549.89,0.00019178,2]
[391263789,1760451046209,-500.0,0.00019178,2]
[391263790,1760451046218,-602.42,0.00019178,2]
[391263791,1760451046228,-1336.08,0.00019178,2]
[391263792,1760451046238,-500.0,0.00019178,2]
[391263794,1760451046247,-1679.06,0.00019178,2]
[391263796,1760451046257,-1445.93,0.00019178,2]
[391263798,1760451046267,-756.18,0.00019178,2]
[391263799,1760451046276,-500.0,0.00019178,2]
[391263800,1760451046286,-608.55,0.00019178,2]
[391263801,1760451046299,-511.28,0.00019178,2]
[391263802,1760451046309,-1485.95,0.00019178,2]
[391263803,1760451046319,-1950.33,0.00019178,2]
[391263804,1760451046329,-1021.29,0.00019178,2]
[391263805,1760451046338,-747.41,0.00019178,2]
[391263806,1760451046348,-598.69,0.00019178,2]
[391263807,1760451046358,-1602.1,0.00019178,2]
[391263808,1760451046367,-500.0,0.00019178,2]
[391263809,1760451046377,-500.0,0.00019178,2]
[391263810,1760451046386,-500.0,0.00019178,2]
[391263811,1760451046396,-3196.74,0.00019178,2]
[391263812,1760451046405,-675.59,0.00019178,2]
[391263813,1760451046415,-969.0,0.00019178,2]
[391263814,1760451046424,-600.15,0.00019178,2]
[391263815,1760451046434,-500.0,0.00019178,2]
[391263816,1760451046443,-730.21,0.00019178,2]
[391263817,1760451046453,-500.0,0.00019178,2]
[391263818,1760451046462,-500.0,0.00019178,2]
[391263819,1760451046472,-1290.03,0.00019178,2]
[391263820,1760451046482,-541.65,0.00019178,2]
[391263821,1760451046491,-500.0,0.00019178,2]
[391263822,1760451046502,-1121.14,0.00019178,2]
[391263823,1760451046511,-1604.92,0.00019178,2]
[391263824,1760451046521,-500.0,0.00019178,2]
[391263825,1760451046531,-584.5,0.00019178,2]
[391263826,1760451046540,-537.8,0.00019178,2]
[391263827,1760451046551,-500.0,0.00019178,2]
[391263828,1760451046560,-549.71,0.00019178,2]
[391263829,1760451046570,-500.0,0.00019178,2]
[391263830,1760451046579,-500.0,0.00019178,2]
[391263831,1760451046589,-502.69,0.00019178,2]
[391263832,1760451046598,-500.0,0.00019178,2]
[391263833,1760451046608,-500.0,0.00019178,2]
[391263834,1760451046618,-500.0,0.00019178,2]
[391263835,1760451046627,-1669.56,0.00019178,2]
[391263836,1760451046637,-1623.19,0.00019178,2]
[391263837,1760451046647,-500.0,0.00019178,2]
[391263838,1760451046657,-1268.53,0.00019178,2]
[391263839,1760451046666,-500.0,0.00019178,2]
[391263840,1760451046676,-1003.4,0.00019178,2]
[391263841,1760451046685,-500.0,0.00019178,2]
[391263842,1760451046695,-1134.2,0.00019178,2]
[391263843,1760451046705,-580.76,0.00019178,2]
[391263844,1760451046715,-500.0,0.00019178,2]
[391263845,1760451046725,-1431.11,0.00019178,2]
[391263846,1760451046734,-500.0,0.00019178,2]
[391263847,1760451046744,-2092.81,0.00019178,2]
[391263848,1760451046754,-1143.23,0.00019178,2]
[391263849,1760451046764,-958.25,0.00019178,2]
[391263850,1760451046774,-528.41,0.00019178,2]
[391263851,1760451046784,-1785.59,0.00019178,2]
[391263853,1760451046795,-1773.69,0.00019178,2]
[391263855,1760451046805,-500.0,0.00019178,2]
[391263857,1760451046815,-500.0,0.00019178,2]
[391263859,1760451046824,-1485.71,0.00019178,2]
[391263860,1760451046834,-1421.82,0.00019178,2]
[391263861,1760451046844,-500.0,0.00019178,2]
[391263862,1760451046853,-1877.9,0.00019178,2]
[391263863,1760451046862,-1362.35,0.00019178,2]
[391263864,1760451046872,-1754.13,0.00019178,2]
[391263865,1760451046881,-1098.0,0.00019178,2]
[391263866,1760451046891,-500.0,0.00019178,2]
[391263867,1760451046900,-500.0,0.00019178,2]
[391263868,1760451046910,-500.0,0.00019178,2]
[391263869,1760451046920,-500.0,0.00019178,2]
[391263870,1760451046929,-500.0,0.00019178,2]
[391263871,1760451046938,-1846.56,0.00019178,2]
[391263872,1760451046948,-500.0,0.00019178,2]
[391263873,1760451046958,-1446.76,0.00019178,2]
[391263874,1760451046967,-500.0,0.00019178,2]
[391263875,1760451046977,-500.0,0.00019178,2]
[391263876,1760451046987,-500.0,0.00019178,2]
[391263877,1760451046997,-313.46,0.00019178,2]
[391263878,1760451047007,-500.0,0.00019178,2]
[391263879,1760451047016,-708.92,0.00019178,2]
[391263880,1760451047025,-500.0,0.00019178,2]
[391263881,1760451047035,-500.0,0.00019178,2]
[391263882,1760451047046,-500.0,0.00019178,2]
[391263883,1760451047055,-500.0,0.00019178,2]
[391263884,1760451047068,-500.0,0.00019178,2]
[391263885,1760451047078,-500.0,0.00019178,2]
[391263886,1760451047087,-500.0,0.00019178,2]
[391263887,1760451047096,-500.0,0.00019178,2]
[391263888,1760451047107,-500.0,0.00019178,2]
[391263889,1760451047116,-500.0,0.00019178,2]
[391263890,1760451047126,-500.0,0.00019178,2]
[391263891,1760451047135,-500.0,0.00019178,2]
[391263892,1760451047145,-500.0,0.00019178,2]
[391263893,1760451047155,-500.0,0.00019178,2]
[391263894,1760451047165,-610.9274888,0.00019178,2]
[391263895,1760451047174,-500.0,0.00019178,2]
[391263896,1760451047184,-500.0,0.00019178,2]
[391263897,1760451047193,-500.0,0.00019178,2]
[391263898,1760451047203,-500.0,0.00019178,2]
[391263899,1760451047212,-500.0,0.00019178,2]
[391263900,1760451047222,-1356.28,0.00019178,2]
[391263901,1760451047231,-500.0,0.00019178,2]
[391263902,1760451047241,-500.0,0.00019178,2]
[391263903,1760451047251,-500.0,0.00019178,2]
[391263904,1760451047260,-1179.76,0.00019178,2]
[391263905,1760451047270,-500.0,0.00019178,2]
[391263906,1760451047279,-500.0,0.00019178,2]
[391263907,1760451047288,-186.46334936,0.00019178,2]
[391263908,1760451047302,-500.0,0.00019178,2]
[391263909,1760451047311,-500.0,0.00019178,2]
[391263910,1760451047322,-845.49,0.00019178,2]
[391263911,1760451047331,-500.0,0.00019178,2]
[391263912,1760451047340,-500.0,0.00019178,2]
[391263913,1760451047350,-500.0,0.00019178,2]
[391263914,1760451047359,-315.24654863,0.00019178,2]
[391263915,1760451047369,-500.0,0.00019178,2]
[391263916,1760451047379,-500.0,0.00019178,2]
[391263917,1760451047388,-500.0,0.00019178,2]
[391263918,1760451047397,-500.0,0.00019178,2]
[391263919,1760451047407,-500.0,0.00019178,2]
[391263920,1760451047417,-500.0,0.00019178,2]
[391263921,1760451047426,-356.49927584,0.00019178,2]
[391263922,1760451047436,-500.0,0.00019178,2]
[391263923,1760451047445,-500.0,0.00019178,2]
[391263924,1760451047454,-500.0,0.00019178,2]
[391263925,1760451047464,-500.0,0.00019178,2]
[391263926,1760451047474,-500.0,0.00019178,2]
[391263927,1760451047484,-2032.6,0.00019178,2]
[391263928,1760451047493,-500.0,0.00019178,2]
[391263929,1760451047503,-574.53,0.00019178,2]
[391263930,1760451047513,-500.0,0.00019178,2]
[391263931,1760451047523,-500.0,0.00019178,2]
[391263932,1760451047532,-500.0,0.00019178,2]
[391263933,1760451047544,-500.0,0.00019178,2]
[391263934,1760451047554,-1250.3,0.00019178,2]
[391263935,1760451047563,-617.85,0.00019178,2]
[391263936,1760451047572,-500.0,0.00019178,2]
[391263937,1760451047582,-500.0,0.00019178,2]
[391263938,1760451047592,-500.0,0.00019178,2]
[391263939,1760451047601,-172.659396,0.00019178,2]
[391263940,1760451047611,-500.0,0.00019178,2]
[391263941,1760451047620,-500.0,0.00019178,2]
[391263942,1760451047629,-2141.88,0.00019178,2]
[391263943,1760451047638,-500.0,0.00019178,2]
[391263944,1760451047648,-500.0,0.00019178,2]
[391263945,1760451047657,-500.0,0.00019178,2]
[391263946,1760451047666,-500.0,0.00019178,2]
[391263947,1760451047675,-500.0,0.00019178,2]
[391263948,1760451047685,-500.0,0.00019178,2]
[391263949,1760451047694,-1972.19,0.00019178,2]
[391263950,1760451047704,-541.17,0.00019178,2]
[391263951,1760451047713,-500.0,0.00019178,2]
[391263952,1760451047722,-500.0,0.00019178,2]
[391263953,1760451047732,-500.0,0.00019178,2]
[391263954,1760451047741,-500.0,0.00019178,2]
[391263955,1760451047750,-500.0,0.00019178,2]
[391263956,1760451047759,-500.0,0.00019178,2]
[391263957,1760451047768,-500.0,0.00019178,2]
[391263958,1760451047777,-500.0,0.00019178,2]
[391263959,1760451047787,-500.0,0.00019178,2]
[391263960,1760451047799,-500.0,0.00019178,2]
[391263961,1760451047808,-1296.33,0.00019178,2]
[391263962,1760451047818,-500.0,0.00019178,2]
[391263963,1760451047827,-636.23,0.00019178,2]
[391263964,1760451047840,-500.0,0.00019178,2]
[391263965,1760451047849,-500.0,0.00019178,2]
[391263966,1760451047859,-1190.18,0.00019178,2]
[391263967,1760451047868,-500.0,0.00019178,2]
[391263968,1760451047877,-500.0,0.00019178,2]
[391263969,1760451047887,-500.0,0.00019178,2]
[391263970,1760451047896,-500.0,0.00019178,2]
[391263971,1760451047906,-500.0,0.00019178,2]
[391263972,1760451047915,-2096.25,0.00019178,2]
[391263973,1760451047925,-917.07,0.00019178,2]
[391263974,1760451047935,-500.0,0.00019178,2]
[391263975,1760451047944,-574.28,0.00019178,2]
[391263976,1760451047953,-500.0,0.00019178,2]
[391263977,1760451047963,-500.0,0.00019178,2]
[391263978,1760451047972,-500.0,0.00019178,2]
[391263979,1760451047982,-500.0,0.00019178,2]
[391263980,1760451047991,-500.0,0.00019178,2]
[391263981,1760451048001,-500.0,0.00019178,2]
[391263982,1760451048010,-1932.17,0.00019178,2]
[391263983,1760451048020,-500.0,0.00019178,2]
[391263984,1760451048029,-653.43,0.00019178,2]
[391263985,1760451048038,-500.0,0.00019178,2]
[391263986,1760451048051,-500.0,0.00019178,2]
[391263987,1760451048061,-500.0,0.00019178,2]
[391263988,1760451048073,-694.69,0.00019178,2]
[391263989,1760451048082,-1158.25,0.00019178,2]
[391263990,1760451048092,-500.0,0.00019178,2]
[391263991,1760451048101,-2331.75,0.00019178,2]
[391263992,1760451048111,-500.0,0.00019178,2]
[391263993,1760451048120,-500.0,0.00019178,2]
[391263994,1760451048130,-500.0,0.00019178,2]
[391263995,1760451048139,-500.0,0.00019178,2]
[391263996,1760451048149,-574.98,0.00019178,2]
[391263997,1760451048158,-500.0,0.00019178,2]
[391263998,1760451048167,-500.0,0.00019178,2]
[391263999,1760451048176,-705.81,0.00019178,2]
[391264000,1760451048185,-500.0,0.00019178,2]
[391264001,1760451048195,-500.0,0.00019178,2]
[391264002,1760451048204,-500.0,0.00019178,2]
[391264003,1760451048213,-500.0,0.00019178,2]
[391264004,1760451048223,-500.0,0.00019178,2]
[391264005,1760451048241,-717.85,0.00019178,2]
[391264006,1760451048252,-500.0,0.00019178,2]
[391264007,1760451048262,-310.96,0.00019178,2]
[391264008,1760451048273,-500.0,0.00019178,2]
[391264009,1760451048288,-500.0,0.00019178,2]
[391264010,1760451048301,-500.0,0.00019178,2]
[391264011,1760451048312,-610.24,0.00019178,2]
[391264012,1760451048322,-309.1217028,0.00019178,2]
[391264013,1760451048331,-500.0,0.00019178,2]
[391264014,1760451048341,-500.0,0.00019178,2]
[391264015,1760451048351,-1159.36,0.00019178,2]
[391264016,1760451048361,-500.0,0.00019178,2]
[391264017,1760451048370,-500.0,0.00019178,2]
[391264018,1760451048379,-1479.7,0.00019178,2]
[391264019,1760451048389,-500.0,0.00019178,2]
[391264020,1760451048398,-500.0,0.00019178,2]
[391264021,1760451048408,-500.0,0.00019178,2]
[391264022,1760451048417,-1584.37,0.00019178,2]
[391264023,1760451048426,-500.0,0.00019178,2]
[391264024,1760451048436,-941.59,0.00019178,2]
[391264025,1760451048445,-500.0,0.00019178,2]
[391264026,1760451048455,-306.12524024,0.00019178,2]
[391264027,1760451048465,-500.0,0.00019178,2]
[391264028,1760451048474,-992.08,0.00019178,2]
[391264029,1760451048483,-500.0,0.00019178,2]
[391264030,1760451048493,-602.36,0.00019178,2]
[391264031,1760451048502,-1577.49,0.00019178,2]
[391264032,1760451048855,-500.22,0.00019178,2]
[391264033,1760451048864,-195.27576706,0.00019178,2]
[391264034,1760451048874,-500.0,0.00019178,2]
[391264035,1760451048884,-500.0,0.00019178,2]
[391264036,1760451048893,-500.0,0.00019178,2]
[391264037,1760451048903,-500.0,0.00019178,2]
[391264038,1760451048912,-500.0,0.00019178,2]
[391264039,1760451048921,-500.0,0.00019178,2]
[391264040,1760451048930,-700.28,0.00019178,2]
[391264041,1760451048940,-500.0,0.00019178,2]
[391264042,1760451048949,-500.0,0.00019178,2]
[391264043,1760451048958,-500.0,0.00019178,2]
[391264044,1760451048968,-500.0,0.00019178,2]
[391264045,1760451048977,-500.0,0.00019178,2]
[391264046,1760451048986,-549.24,0.00019178,2]
[391264047,1760451048996,-500.0,0.00019178,2]
[391264048,1760451049005,-500.0,0.00019178,2]
[391264049,1760451049014,-1057.57,0.00019178,2]
[391264050,1760451049024,-500.0,0.00019178,2]
[391264051,1760451049034,-584.97253975,0.00019178,2]
[391264052,1760451049044,-500.0,0.00019178,2]
[391264053,1760451049054,-500.0,0.00019178,2]
[391264054,1760451049064,-505.18345498,0.00019178,2]
[391264055,1760451049078,-1063.24,0.00019178,2]
[391264056,1760451049087,-504.62,0.00019178,2]
[391264057,1760451049096,-500.0,0.00019178,2]
[391264058,1760451049106,-735.01,0.00019178,2]
[391264059,1760451049116,-597.19,0.00019178,2]
[391264060,1760451049126,-1940.59,0.00019178,2]
[391264061,1760451049135,-500.0,0.00019178,2]
[391264062,1760451049146,-500.0,0.00019178,2]
[391264063,1760451049155,-500.0,0.00019178,2]
[391264064,1760451049165,-1451.5,0.00019178,2]
[391264065,1760451049174,-775.76,0.00019178,2]
[391264066,1760451049183,-1462.81,0.00019178,2]
[391264067,1760451049192,-500.0,0.00019178,2]
[391264068,1760451049202,-1545.85,0.00019178,2]